fUST/lending_fUST_20250809
["ID","MTS","AMOUNT","RATE_DAILY","PERIOD"]
[378159548,1754753443715,-460.0,0.00023156,2]
[378159550,1754753443727,-841.76,0.00023156,2]
[378159551,1754753443739,-832.98,0.00023156,2]
[378159552,1754753443748,-460.0,0.00023182,2]
[378159553,1754753443758,-2564.35,0.00023182,2]
[378159554,1754753443769,-551.31,0.00023182,2]
[378159555,1754753443779,-522.24924805,0.00023182,2]
[378159557,1754753443788,-866.71,0.00023182,2]
[378159558,1754753443797,-460.0,0.00023184,2]
[378159560,1754753443808,-460.0,0.00023184,2]
[378159562,1754753443818,-460.0,0.00023184,2]
[378159565,1754753443827,-494.03,0.00023196,2]
[378159567,1754753443836,-151.0,0.00023287,7]
[378159568,1754753443846,-799.12,0.00023297,2]
[378159569,1754753443856,-827.98,0.00023297,2]
[378159571,1754753443865,-517.1,0.00023297,2]
[378159573,1754753443874,-460.0,0.00023298,2]
[378159574,1754753443884,-361.00098,0.00023298,2]
[378159575,1754753443893,-460.0,0.00023298,2]
[378159576,1754753443903,-500.0,0.00023301,2]
[378159578,1754753443913,-151.0,0.00023301,2]
[378159579,1754753443922,-151.0,0.00023301,2]
[378159580,1754753443932,-500.0,0.00023301,2]
[378159581,1754753443941,-151.0,0.00023301,2]
[378159582,1754753443951,-500.0,0.00023301,2]
[378159583,1754753443960,-151.0,0.00023301,2]
[378159584,1754753443969,-500.0,0.00023301,2]
[378159585,1754753443978,-500.0,0.00023301,2]
[378159586,1754753443987,-151.0,0.00023301,2]
[378159587,1754753443997,-500.0,0.00023301,2]
[378159588,1754753444007,-151.0,0.00023301,2]
[378159589,1754753444018,-500.0,0.00023301,2]
[378159590,1754753444028,-500.0,0.00023301,2]
[378159591,1754753444038,-500.0,0.00023301,2]
[378159592,1754753444048,-500.0,0.00023301,2]
[378159593,1754753444058,-500.0,0.00023301,2]
[378159594,1754753444068,-151.0,0.00023301,2]
[378159595,1754753444078,-500.0,0.00023301,2]
[378159596,1754753444088,-151.0,0.00023301,2]
[378159597,1754753444097,-500.0,0.00023301,2]
[378159598,1754753444107,-151.15347236,0.00023301,2]
[378159599,1754753444116,-151.0,0.00023301,2]
[378159600,1754753444126,-151.0,0.00023301,2]
[378159601,1754753444136,-151.0,0.00023301,2]
[378159602,1754753444146,-151.0,0.00023301,2]
[378159603,1754753444155,-151.0,0.00023301,2]
[378159604,1754753444165,-151.0,0.00023301,2]
[378159605,1754753444176,-151.0,0.00023301,2]
[378159606,1754753444185,-151.0,0.00023301,2]
[378159607,1754753444194,-151.0,0.00023301,2]
[378159608,1754753444204,-151.0,0.00023301,2]
[378159609,1754753444213,-151.0,0.00023301,2]
[378159610,1754753444223,-151.0,0.00023301,2]
[378159611,1754753444232,-8591.8268037,0.00023301,2]
[378159612,1754753444241,-151.0,0.00023301,2]
[378159613,1754753444251,-151.0,0.00023301,2]
[378159614,1754753444260,-151.0,0.00023301,2]
[378159615,1754753444272,-151.0,0.00023301,2]
[378159616,1754753444281,-151.0,0.00023301,2]
[378159617,1754753444291,-151.0,0.00023301,2]
[378159618,1754753444300,-283.13844623,0.00023301,2]
[378159619,1754753444309,-260.0,0.00023358,2]
[378159620,1754753444318,-420.0,0.00023387,2]
[378159621,1754753444328,-152.95012186,0.000234,2]
[378159622,1754753444338,-7650.48431953,0.00023409,2]
[378159623,1754753444348,-2595.61,0.00023429,2]
[378159624,1754753444357,-460.0,0.00023429,2]
[378159625,1754753444366,-1263.18,0.00023429,2]
[378159626,1754753444376,-460.0,0.00023429,2]
[378159627,1754753444385,-460.0,0.00023429,2]
[378159628,1754753444395,-519.05,0.00023429,2]
[378159629,1754753444405,-663.37,0.00023429,2]
[378159630,1754753444414,-460.0,0.00023429,2]
[378159631,1754753444423,-914.2,0.00023429,2]
[378159632,1754753444433,-460.0,0.00023429,2]
[378159633,1754753444442,-1119.09,0.00023429,2]
[378159634,1754753444451,-460.0,0.00023429,2]
[378159635,1754753444461,-460.0,0.00023429,2]
[378159636,1754753444472,-460.0,0.00023429,2]
[378159637,1754753444483,-460.0,0.00023429,2]
[378159638,1754753444492,-460.0,0.00023429,2]
[378159639,1754753444501,-460.0,0.00023429,2]
[378159640,1754753444511,-701.49,0.00023429,2]
[378159641,1754753444523,-460.0,0.00023429,2]
[378159642,1754753444532,-460.0,0.00023429,2]
[378159643,1754753444542,-460.0,0.00023429,2]
[378159644,1754753444552,-460.0,0.00023429,2]
[378159645,1754753444563,-467.31,0.00023429,2]
[378159646,1754753444573,-1503.76,0.00023429,2]
[378159647,1754753444583,-778.58,0.00023429,2]
[378159648,1754753444593,-460.0,0.0002343,2]
[378159649,1754753444603,-622.71,0.0002343,2]
[378159650,1754753444613,-460.0,0.0002343,2]
[378159651,1754753444622,-460.0,0.0002343,2]
[378159652,1754753444632,-460.0,0.0002343,2]
[378159653,1754753444642,-841.76,0.0002343,2]
[378159654,1754753444652,-832.98,0.0002343,2]
[378159655,1754753444662,-460.0,0.00023456,2]
[378159656,1754753444672,-2564.35,0.00023456,2]
[378159657,1754753444681,-551.31,0.00023456,2]
[378159658,1754753444691,-866.71,0.00023456,2]
[378159659,1754753444700,-460.0,0.00023458,2]
[378159660,1754753444710,-460.0,0.00023458,2]
[378159661,1754753444720,-466.4134748,0.00023458,2]
[378159662,1754753444735,-528.95677806,0.00023468,2]
[378159663,1754753444744,-480.0,0.00023497,2]
[378159664,1754753444754,-22556.87828102,0.000235,7]
[378159665,1754753444777,-9388.82399695,0.000235,7]
[378159666,1754753444788,-18054.29772203,0.000235,7]
[378159667,1754753444798,-215.40758176,0.000235,7]
[378159668,1754753444808,-461.55179734,0.000235,7]
[378159669,1754753444817,-12666.14847857,0.000235,7]
[378159670,1754753444827,-859.48,0.00023562,3]
[378159671,1754753444837,-799.12,0.00023571,2]
[378159672,1754753444847,-827.98,0.00023571,2]
[378159673,1754753444857,-517.1,0.00023571,2]
[378159674,1754753444867,-460.0,0.00023572,2]
[378159675,1754753444876,-460.0,0.00023572,2]
[378159676,1754753444886,-1514.0,0.00023604,2]
[378159677,1754753444895,-429.74,0.00023693,3]
[378159678,1754753444904,-2595.61,0.00023703,2]
[378159679,1754753444914,-460.0,0.00023703,2]
[378159680,1754753444924,-1263.18,0.00023703,2]
[378159681,1754753444933,-460.0,0.00023703,2]
[378159682,1754753444943,-460.0,0.00023703,2]
[378159683,1754753444952,-519.05,0.00023703,2]
[378159684,1754753444962,-663.37,0.00023703,2]
[378159685,1754753444972,-460.0,0.00023703,2]
[378159686,1754753444981,-914.2,0.00023703,2]
[378159687,1754753444991,-460.0,0.00023703,2]
[378159688,1754753445000,-1119.09,0.00023703,2]
[378159689,1754753445010,-460.0,0.00023703,2]
[378159690,1754753445020,-460.0,0.00023703,2]
[378159691,1754753445030,-460.0,0.00023703,2]
[378159692,1754753445039,-460.0,0.00023703,2]
[378159693,1754753445051,-460.0,0.00023703,2]
[378159694,1754753445060,-460.0,0.00023703,2]
[378159695,1754753445070,-701.49,0.00023703,2]
[378159696,1754753445080,-460.0,0.00023703,2]
[378159697,1754753445090,-459.21391954,0.00023703,2]
[378159698,1754753445387,460.0,0.00021511,2]
[378159706,1754753446783,-0.78608046,0.00023703,2]
[378159707,1754753446794,-460.0,0.00023703,2]
[378159708,1754753446804,-338.83644733,0.00023703,2]
[378159710,1754753448051,-121.16355267,0.00023703,2]
[378159711,1754753448060,-467.31,0.00023703,2]
[378159712,1754753448070,-1503.76,0.00023703,2]
[378159713,1754753448080,-778.58,0.00023703,2]
[378159714,1754753448089,-460.0,0.00023704,2]
[378159715,1754753448099,-622.71,0.00023704,2]
[378159716,1754753448107,-387.30069955,0.00023704,2]
[378159720,1754753458373,460.0,0.00021511,2]
[378159721,1754753464371,460.0,0.00021511,2]
[378159722,1754753465154,460.0,0.00021511,2]
[378159723,1754753468264,789.49,0.00021511,2]
[378159724,1754753469894,498.33,0.00021511,2]
[378159725,1754753470562,745.85,0.00021511,2]
[378159726,1754753472169,460.0,0.00021511,2]
[378159727,1754753475297,460.0,0.00021511,2]
[378159728,1754753482795,460.0,0.00021511,2]
[378159729,1754753494050,226.10964686,0.00021511,2]
[378159730,1754753494075,233.89035314,0.00021511,2]
[378159731,1754753494107,644.0,0.00024585,30]
[378159732,1754753494485,1288.01,0.00025755,30]
[378159733,1754753494916,1932.01,0.00026926,30]
[378159734,1754753495198,460.0,0.00021511,2]
[378159735,1754753495392,460.0,0.00021511,2]
[378159736,1754753496256,460.0,0.00021511,2]
[378159737,1754753498954,194.8761449,0.00021511,2]
[378159738,1754753499473,460.0,0.00021511,2]
[378159739,1754753502136,984.19,0.00021511,2]
[378159740,1754753503242,501.89,0.00021511,2]
[378159741,1754753506663,460.0,0.00021511,2]
[378159742,1754753516175,460.0,0.00021511,2]
[378159743,1754753528545,803.68,0.00021511,2]
[378159744,1754753528812,462.05080646,0.00021511,2]
[378159745,1754753529447,460.0,0.00021511,2]
[378159746,1754753544945,460.0,0.00021511,2]
[378159747,1754753548376,460.0,0.00021511,2]
[378159748,1754753548722,768.75,0.00021511,2]
[378159749,1754753549878,460.0,0.00021511,2]
[378159750,1754753558408,476.83307238,0.00021511,2]
[378159751,1754753562936,460.0,0.00021511,2]
[378159752,1754753565053,7516.12374777,0.000199,2]
[378159753,1754753565083,460.0,0.00021511,2]
[378159754,1754753568840,460.0,0.00021511,2]
[378159755,1754753570482,460.0,0.00021511,2]
[378159756,1754753575058,683.26,0.00024494,30]
[378159757,1754753575474,1366.53,0.0002566,30]
[378159758,1754753575898,2049.79,0.00026827,30]
[378159759,1754753576449,2733.06,0.00027993,30]
[378159760,1754753577316,460.0,0.00021511,2]
[378159761,1754753579202,1157.71587535,0.00021511,2]
[378159762,1754753579226,3842.28412465,0.00021511,2]
[378159763,1754753579274,461.29523615,0.00021511,2]
[378159764,1754753583365,460.0,0.00021511,2]
[378159765,1754753584874,2584.11,0.00021511,2]
[378159766,1754753585964,460.0,0.00021511,2]
[378159767,1754753594029,460.0,0.00021511,2]
[378159768,1754753596378,460.0,0.00021511,2]
[378159769,1754753596673,460.0,0.00021511,2]
[378159770,1754753598043,5000.0,0.00021511,2]
[378159771,1754753605715,460.0,0.00021511,2]
[378159772,1754753606426,519.05,0.00021511,2]
[378159773,1754753607741,460.0,0.00021511,2]
[378159774,1754753608268,460.0,0.00021511,2]
[378159775,1754753609575,460.0,0.00021511,2]
[378159776,1754753613282,3453.2606392,0.00021511,2]
[378159777,1754753613306,1546.7393608,0.00021511,2]
[378159778,1754753619186,460.0,0.00021511,2]
[378159779,1754753620763,460.0,0.00021511,2]
[378159780,1754753622388,460.0,0.00021511,2]
[378159781,1754753622804,460.0,0.00021511,2]
[378159782,1754753625305,460.0,0.00021511,2]
[378159783,1754753626990,473.00677896,0.00021511,2]
[378159784,1754753629146,5000.0,0.00021511,2]
[378159785,1754753634752,542.89239906,0.00021005,2]
[378159786,1754753642157,460.0,0.00021511,2]
[378159787,1754753642653,460.0,0.00021511,2]
[378159788,1754753645175,5000.0,0.00021511,2]
[378159789,1754753646004,460.0,0.00021511,2]
[378159790,1754753646367,460.0,0.00021511,2]
[378159791,1754753646455,460.0,0.00021511,2]
[378159792,1754753657220,1134.56,0.00021511,2]
[378159793,1754753657728,460.0,0.00021511,2]
[378159794,1754753658841,460.0,0.00021511,2]
[378159795,1754753659474,703.04,0.00023943,30]
[378159796,1754753659635,460.0,0.00021511,2]
[378159797,1754753659903,1406.08,0.00025083,30]
[378159798,1754753660352,2109.12,0.00026223,30]
[378159799,1754753660562,322.80146118,0.00021511,2]
[378159800,1754753660586,137.19853882,0.00021511,2]
[378159801,1754753660782,2812.16,0.00027363,30]
[378159802,1754753661145,5000.0,0.00021511,2]
[378159803,1754753661726,460.0,0.00021511,2]
[378159804,1754753662830,460.0,0.00021511,2]
[378159805,1754753664874,460.0,0.00021511,2]
[378159806,1754753667664,460.0,0.00021511,2]
[378159807,1754753674704,460.0,0.00021511,2]
[378159808,1754753676331,460.0,0.00021511,2]
[378159809,1754753678219,471.98727665,0.00021511,2]
[378159810,1754753678891,574.65236095,0.00021511,2]
[378159811,1754753680341,460.0,0.00021511,2]
[378159812,1754753684282,570.66,0.00021511,2]
[378159813,1754753685671,460.0,0.00021511,2]
[378159814,1754753687049,460.0,0.00021511,2]
[378159815,1754753687689,460.0,0.00021511,2]
[378159816,1754753688891,460.0,0.00021511,2]
[378159817,1754753692225,749.58,0.00021511,2]
[378159818,1754753692937,581.26,0.00021511,2]
[378159820,1754753705743,460.0,0.00021511,2]
[378159822,1754753711638,460.0,0.00021511,2]
[378159823,1754753713217,460.0,0.00021511,2]
[378159824,1754753714894,460.0,0.00021511,2]
[378159825,1754753715528,460.0,0.00021511,2]
[378159826,1754753718579,460.0,0.00021511,2]
[378159827,1754753721689,176.93275425,0.00021412,2]
[378159828,1754753722217,176.93275423,0.00021499,2]
[378159829,1754753724167,460.0,0.00021511,2]
[378159830,1754753731437,470.59,0.00021511,2]
[378159831,1754753736297,460.0,0.00021511,2]
[378159832,1754753740334,460.0,0.00021511,2]
[378159833,1754753743548,718.68,0.00023777,30]
[378159834,1754753744018,1437.35,0.0002491,30]
[378159835,1754753744433,2156.03,0.00026042,30]
[378159836,1754753745021,2874.71,0.00027174,30]
[378159837,1754753745839,460.0,0.00021511,2]
[378159838,1754753747572,460.0,0.00021511,2]
[378159839,1754753752547,970.2063151,0.000199,2]
[378159840,1754753752575,7030.6110926,0.000199,2]
[378159841,1754753757624,460.0,0.00021511,2]
[378159842,1754753759598,941.0,0.00021511,2]
[378159843,1754753760511,460.0,0.00021511,2]
[378159844,1754753762759,460.0,0.00021511,2]
[378159845,1754753763154,300.0,0.00021511,2]
[378159846,1754753764500,460.0,0.00021511,2]
[378159847,1754753768953,460.0,0.00021511,2]
[378159848,1754753770094,458.91,0.00021511,2]
[378159849,1754753774341,460.0,0.00021511,2]
[378159850,1754753776411,460.0,0.00021511,2]
[378159851,1754753776486,460.0,0.00021511,2]
[378159852,1754753782361,460.0,0.00021511,2]
[378159853,1754753784702,460.0,0.00021511,2]
[378159854,1754753785975,460.0,0.00021511,2]
[378159855,1754753790964,460.0,0.00021511,2]
[378159856,1754753796081,304.0,0.00021511,2]
[378159857,1754753796322,460.0,0.00021511,2]
[378159858,1754753802400,460.0,0.00021511,2]
[378159859,1754753802599,460.0,0.00021511,2]
[378159860,1754753805243,2476.43,0.00021511,2]
[378159861,1754753805469,460.0,0.00021511,2]
[378159862,1754753812186,313.5042293,0.000214,2]
[378159863,1754753814153,678.5,0.00021511,2]
[378159864,1754753815464,137.0446781,0.00021511,2]
[378159865,1754753815489,322.9553219,0.00021511,2]
[378159866,1754753819659,898.09,0.00021511,2]
[378159867,1754753821376,460.0,0.00021511,2]
[378159868,1754753822140,1233.0,0.000215,2]
[378159869,1754753823126,300.0,0.00021511,2]
[378159870,1754753823812,730.58,0.00023622,30]
[378159871,1754753824238,1461.16,0.00024747,30]
[378159872,1754753824467,460.0,0.00021511,2]
[378159873,1754753825549,176.93275423,0.00021412,2]
[378159874,1754753826261,2191.73,0.00025871,30]
[378159875,1754753827188,2922.31,0.00026996,30]
[378159876,1754753830119,460.0,0.00021511,2]
[378159877,1754753833924,460.0,0.00021511,2]
[378159878,1754753838614,460.0,0.00021511,2]
[378159879,1754753841190,460.0,0.00021511,2]
[378159880,1754753844563,460.0,0.00021511,2]
[378159881,1754753846738,830.75,0.00021511,2]
[378159882,1754753853675,460.0,0.00021511,2]
[378159883,1754753859007,460.0,0.00021511,2]
[378159884,1754753860089,460.0003546,0.00031566,30]
[378159885,1754753866788,460.0,0.00021511,2]
[378159886,1754753867840,460.0,0.00021511,2]
[378159887,1754753868848,460.0,0.00021511,2]
[378159888,1754753874020,218.182744,0.00020676,2]
[378159889,1754753875561,460.0,0.00021511,2]
[378159890,1754753886751,460.0,0.00021511,2]
[378159891,1754753887999,300.0,0.00021511,2]
[378159892,1754753889506,460.0,0.00021511,2]
[378159893,1754753898192,763.96,0.00021511,2]
[378159894,1754753901677,460.58579748,0.00021511,2]
[378159895,1754753903224,815.03,0.00021511,2]
[378159896,1754753910431,6780.51338239,0.00020681,2]
[378159897,1754753910456,18119.48661761,0.00020681,2]
[378159898,1754753910543,460.0,0.00021511,2]
[378159899,1754753913080,739.12,0.00023267,30]
[378159900,1754753913504,1478.23,0.00024375,30]
[378159901,1754753913948,2217.35,0.00025483,30]
[378159902,1754753914365,2956.47,0.00026591,30]
[378159903,1754753914776,3695.59,0.00027699,30]
[378159904,1754753915970,460.0,0.00021511,2]
[378159905,1754753916074,460.0,0.00021511,2]
[378159906,1754753916332,460.0,0.00021511,2]
[378159907,1754753916725,40.51338239,0.00021511,2]
[378159908,1754753916750,419.48661761,0.00021511,2]
[378159909,1754753918309,460.0,0.00021511,2]
[378159910,1754753921922,5000.0,0.00021511,2]
[378159911,1754753923749,185.13334541,0.00021412,2]
[378159912,1754753925552,460.0,0.00021511,2]
[378159913,1754753927024,460.0,0.00021511,2]
[378159914,1754753930023,1753.76,0.00021511,2]
[378159915,1754753934647,460.0,0.00021511,2]
[378159916,1754753936212,242.398184,0.00020867,2]
[378159917,1754753936540,300.47439682,0.00021005,2]
[378159918,1754753937456,5000.0,0.00021511,2]
[378159919,1754753944173,173.470727,0.00020846,2]
[378159920,1754753944298,300.0,0.00021511,2]
[378159921,1754753944586,173.470727,0.00020846,61]
[378159922,1754753944811,173.470727,0.00020846,120]
[378159923,1754753948514,4785.27672916,0.000199,2]
[378159924,1754753948544,3655.06656205,0.000199,2]
[378159925,1754753950543,460.0,0.00021511,2]
[378159926,1754753952791,5000.0,0.00021511,2]
[378159927,1754753952899,735.2,0.00021511,2]
[378159928,1754753953780,546.89,0.00021511,2]
[378159929,1754753954384,460.0,0.00021511,2]
[378159930,1754753956263,460.0,0.00021511,2]
[378159931,1754753957514,493.15,0.00021511,2]
[378159932,1754753958295,185.1333454,0.00021412,2]
[378159933,1754753966806,528.86842463,0.00021511,2]
[378159934,1754753968107,5000.0,0.00021511,2]
[378159935,1754753971227,460.0,0.00021511,2]
[378159936,1754753973111,460.0,0.00021511,2]
[378159937,1754753974856,460.0,0.00021511,2]
[378159938,1754753975469,460.0,0.00021511,2]
[378159939,1754753975876,460.0,0.00021511,2]
[378159940,1754753976289,175.69166792,0.00021511,2]
[378159941,1754753976313,284.30833208,0.00021511,2]
[378159942,1754753977769,460.0,0.00021511,2]
[378159943,1754753981279,860.67,0.00021511,2]
[378159944,1754753981996,460.0,0.00021511,2]
[378159945,1754753983269,460.0,0.00021511,2]
[378159946,1754753983357,5000.0,0.00021511,2]
[378159947,1754753992388,460.0,0.00021511,2]
[378159948,1754753992702,250.0,0.00020387,2]
[378159949,1754753994492,724.39,0.0002324,30]
[378159950,1754753994900,1448.79,0.00024346,30]
[378159951,1754753995359,2173.18,0.00025453,30]
[378159952,1754753995776,2897.58,0.0002656,30]
[378159953,1754753996187,3621.97,0.00027666,30]
[378159954,1754753996242,257.60219491,0.00021511,2]
[378159955,1754753999143,4486.7321077,0.00021511,2]
[378159956,1754754000443,460.0,0.00021511,2]
[378159957,1754754000939,460.0,0.00021511,2]
[378159958,1754754000973,460.0,0.00021511,2]
[378159959,1754754001665,460.0,0.00021511,2]
[378159960,1754754005060,300.0,0.00021511,2]
[378159962,1754754006150,460.0,0.00021511,2]
[378159964,1754754008749,460.0,0.00021511,2]
[378159965,1754754011557,460.0,0.00021511,2]
[378159966,1754754020119,460.0,0.00021511,2]
[378159967,1754754024194,460.0,0.00021511,2]
[378159968,1754754025405,460.0,0.00021511,2]
[378159969,1754754028239,2120.68736531,0.00020677,2]
[378159970,1754754028264,759.55698629,0.00020677,2]
[378159971,1754754028659,460.0,0.00021511,2]
[378159972,1754754031746,2832.58,0.00021511,2]
[378159973,1754754032627,460.0,0.00021511,2]
[378159974,1754754034280,460.0,0.00021511,2]
[378159975,1754754036011,460.0,0.00021511,2]
[378159976,1754754038268,979.52,0.00021511,2]
[378159977,1754754041663,460.0,0.00021511,2]
[378159978,1754754049876,464.83461222,0.00021511,2]
[378159979,1754754058939,460.0,0.00021511,2]
[378159980,1754754062451,460.0,0.00021511,2]
[378159981,1754754062652,300.0,0.00021511,2]
[378159982,1754754065318,460.0,0.00021511,2]
[378159983,1754754066814,460.0,0.00021511,2]
[378159984,1754754067939,196.00574076,0.00021511,2]
[378159985,1754754070894,2519.3619688,0.00021412,2]
[378159986,1754754071858,460.0,0.00021511,2]
[378159987,1754754074144,460.0,0.00021511,2]
[378159988,1754754074523,708.38,0.00022987,30]
[378159989,1754754074968,460.0,0.00021511,2]
[378159990,1754754075365,1416.76,0.00024082,30]
[378159991,1754754075566,537.5,0.00021511,2]
[378159992,1754754075785,2125.14,0.00025176,30]
[378159993,1754754076201,2833.52,0.00026271,30]
[378159994,1754754083107,3541.9,0.00027365,30]
[378159995,1754754083231,203.04195854,0.00021412,2]
[378159996,1754754085184,460.0,0.00021511,2]
[378159997,1754754089270,460.0,0.00021511,2]
[378159998,1754754090658,4767.59873339,0.00021511,2]
[378159999,1754754090683,232.40126661,0.00021511,2]
[378160000,1754754102669,460.0,0.00021511,2]
[378160001,1754754103437,460.0,0.00021511,2]
[378160002,1754754105623,559.28,0.00021511,2]
[378160003,1754754106826,460.0,0.00021511,2]
[378160004,1754754107106,5000.0,0.00021511,2]
[378160005,1754754108350,609.87045912,0.00021511,2]
[378160006,1754754109492,460.0,0.00021511,2]
[378160007,1754754110253,460.0,0.00021511,2]
[378160008,1754754110284,663.54,0.00021511,2]
[378160009,1754754112324,460.0,0.00021511,2]
[378160010,1754754113411,487.12956235,0.000214,2]
[378160011,1754754114357,460.0,0.00021511,2]
[378160012,1754754118918,460.0,0.00021511,2]
[378160013,1754754121774,936.92,0.00021511,2]
[378160014,1754754122429,300.0,0.00021511,2]
[378160015,1754754127143,839.0,0.00021511,2]
[378160016,1754754127314,460.0,0.00021511,2]
[378160017,1754754131099,460.0,0.00021511,2]
[378160018,1754754134016,5771.85871192,0.00020681,2]
[378160019,1754754134040,4228.14128808,0.00020681,2]
[378160020,1754754134607,460.0,0.00021511,2]
[378160021,1754754137997,460.0,0.00021511,2]
[378160022,1754754138077,9050.18221501,0.000199,2]
[378160023,1754754139300,460.0,0.00021511,2]
[378160024,1754754150766,460.0,0.00021511,2]
[378160025,1754754151169,460.0,0.00021511,2]
[378160026,1754754151215,4421.67649691,0.00021511,2]
[378160027,1754754151239,578.32350309,0.00021511,2]
[378160028,1754754158519,460.0,0.00021511,2]
[378160029,1754754160450,460.0,0.00021511,2]
[378160030,1754754162304,460.0,0.00021511,2]
[378160031,1754754163532,460.0,0.00021511,2]
[378160032,1754754164214,460.0,0.00021511,2]
[378160033,1754754165279,460.0,0.00021511,2]
[378160034,1754754168322,691.32,0.00023235,30]
[378160035,1754754168731,1382.63,0.00024341,30]
[378160036,1754754169414,2073.95,0.00025448,30]
[378160037,1754754169839,2765.27,0.00026554,30]
[378160038,1754754170250,3456.58,0.00027661,30]
[378160039,1754754176265,460.0,0.00021511,2]
[378160040,1754754178228,460.0,0.00021511,2]
[378160041,1754754180298,460.0,0.00021511,2]
[378160042,1754754181194,5000.0,0.00021511,2]
[378160043,1754754183627,300.0,0.00021511,2]
[378160044,1754754187862,460.0,0.00021511,2]
[378160045,1754754193572,460.0,0.00021511,2]
[378160046,1754754196549,5000.0,0.00021511,2]
[378160047,1754754198310,460.0,0.00021511,2]
[378160048,1754754199898,166.83171779,0.00021511,2]
[378160049,1754754201356,460.0,0.00021511,2]
[378160050,1754754203512,460.0,0.00021511,2]
[378160051,1754754203723,460.0,0.00021511,2]
[378160052,1754754208712,460.0,0.00021511,2]
[378160053,1754754211952,1594.84477912,0.00021511,2]
[378160054,1754754211981,3405.15522088,0.00021511,2]
[378160055,1754754216578,460.0,0.00021511,2]
[378160056,1754754226357,460.0,0.00021511,2]
[378160057,1754754228234,460.0,0.00021511,2]
[378160058,1754754228966,5000.0,0.00021511,2]
[378160059,1754754230328,464.45463627,0.00021511,2]
[378160060,1754754230581,460.0,0.00021511,2]
[378160061,1754754232456,460.0,0.00021511,2]
[378160062,1754754236354,272.26656738,0.00021511,2]
[378160063,1754754238638,320.04159,0.00020867,2]
[378160064,1754754239035,569.86157144,0.00021005,2]
[378160065,1754754239377,214.98685,0.00021022,2]
[378160066,1754754239749,177.43736072,0.00021025,2]
[378160067,1754754240507,460.0,0.00021511,2]
[378160069,1754754242489,300.0,0.00021511,2]
[378160070,1754754245169,5000.0,0.00021511,2]
[378160071,1754754245201,460.0,0.00021511,2]
[378160072,1754754247374,673.42,0.00024868,30]
[378160073,1754754248317,1346.84,0.00026052,30]